[Event "2nd Serbian League-Vojvodina 2023"]
[Site "Novi Sad"]
[Date "2023.11.02"]
[Round "1.22"]
[White "Milanovic, Marko"]
[Black "Mijatovic, Dejan"]
[Result "1-0"]
[ECO "B52"]
[WhiteElo "2248"]
[BlackElo "2185"]
[Annotator "ChessBase"]
[PlyCount "101"]
[EventDate "2023.10.22"]
[EventType "team-tourn"]
[EventCountry "SRB"]
[SourceTitle "playchess.com"]
[Source "ChessBase"]
[SourceQuality "1"]
[TimeControl "40/5400+30:1800+30"]

1. e4 {[%emt 1:31:00]} c5 {[%emt 1:31:00]} 2. Nf3 {[%emt 0:00:30]} d6 {[%emt 0:00:30]} 3. Bb5+ {[%emt 0:00:30]} Bd7 {[%emt 0:00:30]} 4. Bxd7+ {[%emt 0:00:30]} Qxd7 {[%emt 0:00:30]} 5. c4 {[%emt 0:00:30]} e5 {[%emt 0:00:30]} 6. Nc3 {[%emt 0:00:30]} g6 {[%emt 0:00:30]} 7. d3 {[%emt 0:00:30]} Bg7 {[%emt 0:00:30]} 8. O-O {[%emt 0:00:30]} Ne7 {[%emt 0:00:30]} 9. Rb1 {[%emt 0:00:30]} Nbc6 {[%emt 0:00:30]} 10. a3 {[%emt 0:00:30]} O-O {[%emt 0:00:30]} 11. b4 {[%emt 0:00:30]} h6 {[%emt 0:00:30]} 12. Nd5 {[%emt 0:00:30]} b6 {[%emt 0:00:30]} 13. Bxh6 {[%emt 0:00:30]} Nxd5 {[%emt 0:00:30]} 14. Bxg7 {[%emt 0:00:30]} Nc3 {[%emt 0:00:30]} 15. Qd2 {[%emt 0:00:30]} Nxb1 {[%emt 0:00:30]} 16. Qh6 {[%emt 0:00:30]} f6 {[%emt 0:00:30]} 17. Qh8+ {[%emt 0:00:30]} Kf7 {[%emt 0:00:30]} 18. Bxf8 {[%emt 0:00:30]} Rxf8 {[%emt 0:00:30]} 19. Qh7+ {[%emt 0:00:30]} Ke6 {[%emt 0:00:30]} 20. Qxd7+ {[%emt 0:00:30]} Kxd7 {[%emt 0:00:30]} 21. Rxb1 {[%emt 0:00:30]} cxb4 22. axb4 a5 23. b5 {[%emt 0:01:00]} Nb4 {[%emt 0:01:30]} 24. Ne1 {[%emt 0:00:30]} d5 {[%emt 0:00:30]} 25. exd5 {[%emt 0:00:30]} Kd6 {[%emt 0:00:30]} 26. Kf1 {[%emt 0:00:30]} Kc5 {[%emt 0:00:30]} 27. Ke2 {[%emt 0:00:30]} e4 {[%emt 0:00:30]} 28. Kd2 {[%emt 0:00:30]} Kd4 {[%emt 0:00:30]} 29. dxe4 {[%emt 0:00:30]} Kxc4 {[%emt 0:00:30]} 30. Nc2 {[%emt 0:00:30]} Nxc2 {[%emt 0:00:30]} 31. Kxc2 {[%emt 0:00:30]} f5 {[%emt 0:00:30]} 32. e5 {[%emt 0:00:30]} Kxd5 {[%emt 0:00:30]} 33. f4 {[%emt 0:00:30]} Rc8+ {[%emt 0:00:30]} 34. Kd3 {[%emt 0:00:30]} Rc4 {[%emt 0:00:30]} 35. g3 {[%emt 0:00:30]} Rd4+ {[%emt 0:00:30]} 36. Kc3 {[%emt 0:00:30]} Kc5 {[%emt 0:00:30]} 37. Re1 {[%emt 0:00:30]} Re4 {[%emt 0:00:30]} 38. Rb1 {[%emt 0:00:30]} Re3+ {[%emt 0:00:30]} 39. Kd2 {[%emt 0:00:30]} Re4 {[%emt 0:00:30]} 40. Kd3 {[%emt 0:00:30]} a4 {[%emt 0:00:30]} 41. Kc3 {[%emt 0:30:30]} Rc4+ {[%emt 0:30:30]} 42. Kd3 {[%emt 0:00:30]} a3 {[%emt 0:00:30]} 43. Ra1 {[%emt 0:00:30]} Ra4 {[%emt 0:00:30]} 44. Kc3 {[%emt 0:00:30]} Kxb5 {[%emt 0:00:30]} 45. Kb3 {[%emt 0:00:30]} Re4 {[%emt 0:00:30]} 46. Rxa3 Re3+ {[%emt 0:00:30]} 47. Kb2 {[%emt 0:01:00]} Re2+ {[%emt 0:00:30]} 48. Kc3 {[%emt 0:00:30]} Rxh2 {[%emt 0:00:30]} 49. Kd4 {[%emt 0:00:30]} Kc6 {[%emt 0:00:30]} 50. Rc3+ {[%emt 0:00:30]} Kd7 {[%emt 0:00:30]} 51. Rd3 {[%emt 0:00:30]} 1-0

[Event "2nd Serbian League-Vojvodina 2023"]
[Site "Novi Sad"]
[Date "2023.11.02"]
[Round "1.23"]
[White "Rosic, Slavko S"]
[Black "Levnajic, Pavle"]
[Result "1-0"]
[ECO "B07"]
[WhiteElo "2212"]
[BlackElo "2160"]
[Annotator "ChessBase"]
[PlyCount "115"]
[EventDate "2023.10.22"]
[EventType "team-tourn"]
[EventCountry "SRB"]
[SourceTitle "playchess.com"]
[Source "ChessBase"]
[SourceQuality "1"]
[TimeControl "40/5400+30:1800+30"]

1. e4 {[%emt 1:31:00]} d6 {[%emt 1:31:00]} 2. d4 {[%emt 0:00:30]} Nf6 {[%emt 0:00:30]} 3. Nc3 {[%emt 0:00:30]} e6 {[%emt 0:00:30]} 4. f3 {[%emt 0:00:30]} a6 {[%emt 0:00:30]} 5. a4 {[%emt 0:00:30]} d5 {[%emt 0:00:30]} 6. exd5 {[%emt 0:00:30]} exd5 {[%emt 0:00:30]} 7. Bg5 {[%emt 0:00:30]} Be7 {[%emt 0:00:30]} 8. Bd3 {[%emt 0:00:30]} Nc6 {[%emt 0:00:30]} 9. Nce2 {[%emt 0:00:30]} Nb4 {[%emt 0:00:30]} 10. Ng3 {[%emt 0:00:30]} Nxd3+ {[%emt 0:00:30]} 11. Qxd3 {[%emt 0:00:30]} h6 {[%emt 0:00:30]} 12. Bd2 {[%emt 0:00:30]} O-O {[%emt 0:00:30]} 13. N1e2 {[%emt 0:00:30]} a5 {[%emt 0:00:30]} 14. O-O {[%emt 0:00:30]} b6 {[%emt 0:00:30]} 15. Nf5 {[%emt 0:00:30]} Ba6 {[%emt 0:00:30]} 16. Qe3 {[%emt 0:00:30]} Re8 {[%emt 0:00:30]} 17. Qf2 {[%emt 0:00:30]} Qd7 {[%emt 0:00:30]} 18. Nfg3 {[%emt 0:00:30]} Bd6 {[%emt 0:00:30]} 19. Rfe1 {[%emt 0:00:30]} Bxe2 {[%emt 0:00:30]} 20. Rxe2 {[%emt 0:00:30]} Rxe2 {[%emt 0:00:30]} 21. Nxe2 {[%emt 0:00:30]} Qf5 {[%emt 0:00:30]} 22. Rc1 {[%emt 0:00:30]} Re8 {[%emt 0:00:30]} 23. Ng3 {[%emt 0:00:30]} Qd7 {[%emt 0:00:30]} 24. b3 {[%emt 0:00:30]} Kh7 {[%emt 0:00:30]} 25. Re1 {[%emt 0:00:30]} g6 {[%emt 0:00:30]} 26. Rxe8 {[%emt 0:00:30]} Qxe8 {[%emt 0:00:30]} 27. Ne2 {[%emt 0:00:30]} Qc6 {[%emt 0:00:30]} 28. c3 {[%emt 0:00:30]} Qd7 {[%emt 0:00:30]} 29. Qe3 {[%emt 0:00:30]} Ng8 30. Nf4 {[%emt 0:00:30]} Qf5 {[%emt 0:01:00]} 31. Nd3 {[%emt 0:00:30]} h5 {[%emt 0:00:30]} 32. Be1 {[%emt 0:00:30]} Kg7 {[%emt 0:00:30]} 33. Bg3 {[%emt 0:00:30]} Bxg3 {[%emt 0:00:30]} 34. hxg3 {[%emt 0:00:30]} Nf6 {[%emt 0:00:30]} 35. b4 {[%emt 0:00:30]} Nd7 {[%emt 0:00:30]} 36. Kh2 {[%emt 0:00:30]} Nf8 {[%emt 0:00:30]} 37. bxa5 {[%emt 0:00:30]} bxa5 {[%emt 0:00:30]} 38. Nc5 {[%emt 0:00:30]} Nd7 {[%emt 0:00:30]} 39. Qe7 {[%emt 0:00:30]} Nxc5 {[%emt 0:00:30]} 40. Qxc5 {[%emt 0:00:30]} h4 {[%emt 0:00:30]} 41. Qxc7 {[%emt 0:30:30]} hxg3+ {[%emt 0:30:30]} 42. Qxg3 {[%emt 0:00:30]} Qd7 {[%emt 0:00:30]} 43. Qb8 {[%emt 0:00:30]} Kh7 {[%emt 0:00:30]} 44. Qb3 {[%emt 0:00:30]} Qf5 {[%emt 0:00:30]} 45. Qb8 {[%emt 0:00:30]} Qd7 {[%emt 0:00:30]} 46. Qe5 {[%emt 0:00:30]} Qc6 {[%emt 0:00:30]} 47. Kg3 {[%emt 0:00:30]} Kg8 {[%emt 0:00:30]} 48. Qb8+ {[%emt 0:00:30]} Kg7 {[%emt 0:00:30]} 49. Qb3 {[%emt 0:00:30]} Kf6 {[%emt 0:00:30]} 50. Kf2 {[%emt 0:00:30]} Qd7 {[%emt 0:00:30]} 51. c4 {[%emt 0:00:30]} dxc4 {[%emt 0:00:30]} 52. Qxc4 {[%emt 0:00:30]} Qd6 {[%emt 0:00:30]} 53. d5 {[%emt 0:00:30]} Qb6+ {[%emt 0:00:30]} 54. Kg3 {[%emt 0:00:30]} Qd6+ 55. Kh3 {[%emt 0:00:30]} Qd7+ {[%emt 0:01:00]} 56. g4 {[%emt 0:00:30]} g5 {[%emt 0:00:30]} 57. Qc3+ {[%emt 0:00:30]} Kg6 {[%emt 0:00:30]} 58. Qc6+ {[%emt 0:00:30]} 1-0

[Event "2nd Serbian League-Vojvodina 2023"]
[Site "Novi Sad"]
[Date "2023.11.03"]
[Round "2.1"]
[White "Bokros, Albert"]
[Black "Mezentsev, Ivan"]
[Result "1/2-1/2"]
[ECO "B53"]
[WhiteElo "2447"]
[BlackElo "2360"]
[Annotator "RC"]
[PlyCount "32"]
[EventDate "2023.10.22"]
[EventType "team-tourn"]
[EventCountry "SRB"]
[SourceTitle "playchess.com"]
[Source "ChessBase"]
[SourceQuality "1"]
[TimeControl "40/5400+30:1800+30"]

1. e4 {[%emt 0:00:05]} c5 {[%emt 0:01:20]} 2. Nf3 {[%emt 0:00:36]} d6 {[%emt 0:00:43]} 3. d4 {[%emt 0:00:54]} cxd4 {[%emt 0:00:24]} 4. Qxd4 {[%emt 0:00:24]} a6 {[%emt 0:02:37]} 5. Be2 {[%emt 0:01:03]} Nc6 {[%emt 0:00:46]} 6. Qe3 {[%emt 0:00:14]} g6 {[%emt 0:01:06]} 7. O-O {[%emt 0:01:20]} Bg7 {[%emt 0:00:08]} 8. h3 {[%emt 0:01:42]} Nf6 {[%emt 0:00:35]} 9. Rd1 {[%emt 0:01:57]} Nd7 {[%emt 0:09:00]} 10. Nc3 {[%emt 0:04:36]} O-O {[%emt 0:00:16]} 11. Nd5 {[%emt 0:02:34]} b6 {[%emt 0:04:48]} 12. c3 {[%emt 0:07:07]} Bb7 {[%emt 0:00:39]} 13. Bf1 {[%emt 0:01:22]} e6 {[%emt 0:12:38]} 14. Nf4 {[%emt 0:01:11]} Nde5 {[%emt 0:02:01]} 15. Nxe5 {[%emt 0:07:18]} Nxe5 {[%emt 0:01:37]} 16. Nd3 {[%emt 0:01:54]} Nc4 {[%emt 0:07:13]} 1/2-1/2

[Event "2nd Serbian League-Vojvodina 2023"]
[Site "Novi Sad"]
[Date "2023.11.03"]
[Round "2.2"]
[White "Mushini Ajay"]
[Black "Varga, Zoltan"]
[Result "1-0"]
[ECO "B02"]
[WhiteElo "2301"]
[BlackElo "2356"]
[Annotator "RC"]
[PlyCount "49"]
[EventDate "2023.10.22"]
[EventType "team-tourn"]
[EventCountry "SRB"]
[SourceTitle "playchess.com"]
[Source "ChessBase"]
[SourceQuality "1"]
[TimeControl "40/5400+30:1800+30"]

1. e4 {[%emt 1:31:00]} Nf6 {[%emt 1:31:00]} 2. e5 {[%emt 0:00:30]} Nd5 {[%emt 0:00:30]} 3. Bc4 {[%emt 0:00:30]} Nb6 {[%emt 0:00:30]} 4. Bb3 {[%emt 0:00:30]} c5 {[%emt 0:00:30]} 5. Qe2 {[%emt 0:00:30]} Nc6 {[%emt 0:00:30]} 6. Nf3 {[%emt 0:00:30]} d5 {[%emt 0:00:30]} 7. exd6 {[%emt 0:00:30]} e6 {[%emt 0:00:30]} 8. Nc3 {[%emt 0:00:30]} Bxd6 {[%emt 0:00:30]} 9. d3 {[%emt 0:00:30]} O-O {[%emt 0:00:30]} 10. O-O {[%emt 0:00:30]} e5 {[%emt 0:00:30]} 11. Bg5 {[%emt 0:00:30]} Be7 {[%emt 0:00:30]} 12. Bxe7 {[%emt 0:00:30]} Qxe7 {[%emt 0:00:30]} 13. Rae1 {[%emt 0:00:30]} Bg4 {[%emt 0:00:30]} 14. h3 {[%emt 0:00:30]} Bxf3 {[%emt 0:00:30]} 15. Qxf3 {[%emt 0:00:30]} Kh8 {[%emt 0:00:30]} 16. Qg3 {[%emt 0:00:30]} Rad8 {[%emt 0:00:30]} 17. f4 {[%emt 0:00:30]} f6 {[%emt 0:00:30]} 18. Qf2 {[%emt 0:00:30]} a5 {[%emt 0:00:30]} 19. a3 {[%emt 0:00:30]} Rd4 {[%emt 0:00:30]} 20. Ne4 {[%emt 0:00:30]} Re8 {[%emt 0:00:30]} 21. fxe5 {[%emt 0:00:30]} Nxe5 {[%emt 0:00:30]} 22. Nxc5 {[%emt 0:00:30]} Qxc5 {[%emt 0:00:30]} 23. c3 {[%emt 0:00:30]} Red8 {[%emt 0:00:30]} 24. cxd4 {[%emt 0:00:30]} Rxd4 {[%emt 0:00:30]} 25. Rxe5 {[%emt 0:00:30]} 1-0

[Event "2nd Serbian League-Vojvodina 2023"]
[Site "Novi Sad"]
[Date "2023.11.03"]
[Round "2.3"]
[White "Strbac, Mladen"]
[Black "Jotic, Vladimir"]
[Result "1/2-1/2"]
[ECO "B37"]
[WhiteElo "2246"]
[BlackElo "2280"]
[Annotator "RC"]
[PlyCount "97"]
[EventDate "2023.10.22"]
[EventType "team-tourn"]
[EventCountry "SRB"]
[SourceTitle "playchess.com"]
[Source "ChessBase"]
[SourceQuality "1"]
[TimeControl "40/5400+30:1800+30"]

1. e4 {[%emt 0:00:12]} c5 {[%emt 0:01:47]} 2. Nf3 {[%emt 0:00:10]} Nc6 {[%emt 0:00:06]} 3. d4 {[%emt 0:00:07]} cxd4 {[%emt 0:00:04]} 4. Nxd4 {[%emt 0:00:05]} g6 {[%emt 0:03:50]} 5. c4 {[%emt 0:00:48]} Bg7 {[%emt 0:00:36]} 6. Nc2 {[%emt 0:00:15]} Nf6 {[%emt 0:00:10]} 7. Nc3 {[%emt 0:00:22]} O-O {[%emt 0:00:03]} 8. Be2 {[%emt 0:00:24]} d6 {[%emt 0:00:07]} 9. O-O {[%emt 0:00:33]} Nd7 {[%emt 0:02:24]} 10. Bd2 {[%emt 0:02:40]} a5 {[%emt 0:00:40]} 11. Na3 {[%emt 0:04:40]} Nc5 {[%emt 1:26:13]} 12. Nab5 {[%emt 1:26:14]} Nd4 {[%emt 0:00:30]} 13. Be3 {[%emt 0:00:30]} Nxb5 {[%emt 0:00:30]} 14. cxb5 {[%emt 0:00:30]} a4 {[%emt 0:00:30]} 15. Bd4 {[%emt 0:00:30]} b6 {[%emt 0:00:30]} 16. f4 {[%emt 0:00:30]} e5 {[%emt 0:00:30]} 17. fxe5 {[%emt 0:00:30]} Ne6 {[%emt 0:00:30]} 18. a3 {[%emt 0:00:30]} Nxd4 {[%emt 0:00:00]} 19. Qxd4 {[%emt 0:00:30]} Bxe5 {[%emt 0:01:00]} 20. Qe3 {[%emt 0:00:30]} Be6 {[%emt 0:00:30]} 21. Rac1 {[%emt 0:00:00]} Re8 22. Kh1 {[%emt 0:01:00]} Ra7 {[%emt 0:01:00]} 23. Rf2 {[%emt 0:00:30]} Rc7 {[%emt 0:00:30]} 24. Rcf1 {[%emt 0:00:00]} Bxc3 {[%emt 0:00:00]} 25. bxc3 {[%emt 0:00:00]} Rc5 {[%emt 0:00:00]} 26. c4 {[%emt 0:01:30]} Qg5 {[%emt 0:01:30]} 27. Qd4 {[%emt 0:00:00]} Qe5 {[%emt 0:00:30]} 28. Rd1 {[%emt 0:01:00]} Qxd4 {[%emt 0:00:00]} 29. Rxd4 {[%emt 0:00:30]} Rd8 {[%emt 0:01:00]} 30. Rf1 {[%emt 0:00:00]} Kf8 {[%emt 0:00:00]} 31. Rb1 {[%emt 0:01:00]} Ke7 {[%emt 0:01:00]} 32. Rb4 {[%emt 0:00:30]} Ra8 {[%emt 0:00:00]} 33. Kg1 {[%emt 0:00:00]} h5 34. h4 {[%emt 0:01:00]} g5 {[%emt 0:00:00]} 35. g3 gxh4 36. gxh4 Bg4 {[%emt 0:02:30]} 37. Bxg4 {[%emt 0:01:30]} Rg8 {[%emt 0:00:30]} 38. Rxa4 {[%emt 0:00:00]} Rxg4+ {[%emt 0:00:00]} 39. Kf2 {[%emt 0:01:00]} Rxh4 {[%emt 0:01:00]} 40. Ra7+ {[%emt 0:00:30]} Ke6 {[%emt 0:00:00]} 41. Rb7 {[%emt 0:30:30]} Ke5 {[%emt 0:31:00]} 42. Rd5+ {[%emt 0:00:00]} Rxd5 {[%emt 0:00:00]} 43. cxd5 {[%emt 0:01:00]} Rh2+ {[%emt 0:01:00]} 44. Kg3 {[%emt 0:00:00]} Ra2 {[%emt 0:00:30]} 45. Rxb6 {[%emt 0:01:00]} Rxa3+ {[%emt 0:00:00]} 46. Kh4 {[%emt 0:00:30]} Ra4 {[%emt 0:00:00]} 47. Kxh5 {[%emt 0:00:00]} Rxe4 {[%emt 0:00:00]} 48. Rb7 {[%emt 0:00:00]} f5 {[%emt 0:00:00]} 49. Rf7 {[%emt 0:01:30]} 1/2-1/2

[Event "2nd Serbian League-Vojvodina 2023"]
[Site "Novi Sad"]
[Date "2023.11.03"]
[Round "2.4"]
[White "Mikheev, Stanislav"]
[Black "Milanovic, Marko"]
[Result "1/2-1/2"]
[ECO "D45"]
[WhiteElo "2288"]
[BlackElo "2248"]
[Annotator "RC"]
[PlyCount "147"]
[EventDate "2023.10.22"]
[EventType "team-tourn"]
[EventCountry "SRB"]
[SourceTitle "playchess.com"]
[Source "ChessBase"]
[SourceQuality "1"]
[TimeControl "40/5400+30:1800+30"]

1. d4 {[%emt 1:31:00]} d5 {[%emt 1:31:00]} 2. c4 {[%emt 0:00:30]} c6 {[%emt 0:00:30]} 3. Nf3 {[%emt 0:00:30]} Nf6 {[%emt 0:00:30]} 4. Nc3 {[%emt 0:00:30]} e6 {[%emt 0:00:30]} 5. e3 {[%emt 0:00:30]} Nbd7 {[%emt 0:00:30]} 6. Qc2 {[%emt 0:00:30]} Bd6 {[%emt 0:00:30]} 7. b3 {[%emt 0:00:30]} O-O {[%emt 0:00:30]} 8. Be2 {[%emt 0:00:30]} b6 {[%emt 0:00:30]} 9. O-O {[%emt 0:00:30]} Bb7 {[%emt 0:00:30]} 10. Bb2 {[%emt 0:00:30]} Qe7 {[%emt 0:00:30]} 11. Rad1 {[%emt 0:00:30]} Rad8 {[%emt 0:00:30]} 12. Rfe1 {[%emt 0:00:30]} Rfe8 {[%emt 0:00:30]} 13. Bf1 {[%emt 0:00:30]} e5 {[%emt 0:00:30]} 14. cxd5 {[%emt 0:00:30]} cxd5 {[%emt 0:00:30]} 15. Nb5 {[%emt 0:00:30]} e4 {[%emt 0:00:30]} 16. Nxd6 {[%emt 0:00:30]} Qxd6 {[%emt 0:00:30]} 17. Ne5 {[%emt 0:00:30]} Rc8 {[%emt 0:00:30]} 18. Qd2 {[%emt 0:00:30]} Nf8 {[%emt 0:00:30]} 19. Rc1 {[%emt 0:00:30]} Ne6 {[%emt 0:00:30]} 20. Bc3 {[%emt 0:00:30]} a6 {[%emt 0:00:30]} 21. Bb4 {[%emt 0:00:30]} Qb8 {[%emt 0:00:30]} 22. a4 {[%emt 0:00:30]} Rxc1 {[%emt 0:00:30]} 23. Rxc1 {[%emt 0:00:30]} Rc8 {[%emt 0:00:30]} 24. a5 {[%emt 0:00:30]} b5 {[%emt 0:00:30]} 25. Be7 {[%emt 0:00:30]} Rxc1 {[%emt 0:00:30]} 26. Qxc1 {[%emt 0:00:30]} Qc8 {[%emt 0:00:30]} 27. Qxc8+ {[%emt 0:00:30]} Bxc8 {[%emt 0:00:30]} 28. f3 {[%emt 0:00:30]} Nd7 {[%emt 0:00:30]} 29. Nc6 {[%emt 0:00:30]} Bb7 {[%emt 0:00:30]} 30. Nb4 {[%emt 0:00:30]} f5 {[%emt 0:00:30]} 31. Kf2 {[%emt 0:00:30]} Kf7 {[%emt 0:00:30]} 32. Bd6 {[%emt 0:00:30]} g6 {[%emt 0:00:30]} 33. Be2 {[%emt 0:00:30]} Nf6 {[%emt 0:00:30]} 34. Bd1 {[%emt 0:00:30]} Nd8 {[%emt 0:00:30]} 35. Be5 {[%emt 0:00:30]} Nc6 {[%emt 0:00:30]} 36. Nxc6 {[%emt 0:00:30]} Bxc6 {[%emt 0:00:30]} 37. Ke1 {[%emt 0:00:30]} Nd7 {[%emt 0:00:30]} 38. Bc7 {[%emt 0:00:30]} Ke6 {[%emt 0:00:30]} 39. Kd2 {[%emt 0:00:30]} h5 {[%emt 0:00:30]} 40. Kc3 {[%emt 0:00:30]} Bb7 {[%emt 0:00:30]} 41. Kb4 {[%emt 0:30:30]} Nf6 {[%emt 0:30:30]} 42. Be2 {[%emt 0:00:30]} Nd7 {[%emt 0:00:30]} 43. h3 {[%emt 0:00:30]} Nf6 {[%emt 0:00:30]} 44. Bf4 {[%emt 0:00:30]} Ba8 {[%emt 0:00:30]} 45. Be5 {[%emt 0:00:30]} Nd7 {[%emt 0:00:30]} 46. f4 {[%emt 0:00:30]} Bc6 {[%emt 0:00:30]} 47. Bc7 {[%emt 0:00:30]} Ke7 {[%emt 0:00:30]} 48. g4 {[%emt 0:00:30]} hxg4 {[%emt 0:00:30]} 49. hxg4 {[%emt 0:00:30]} Ke6 {[%emt 0:00:30]} 50. Be5 {[%emt 0:00:30]} Bb7 {[%emt 0:00:30]} 51. gxf5+ {[%emt 0:00:30]} gxf5 {[%emt 0:00:30]} 52. Bh5 {[%emt 0:00:30]} Bc6 {[%emt 0:00:30]} 53. Bg6 {[%emt 0:00:30]} Nf8 {[%emt 0:00:30]} 54. Bh5 {[%emt 0:00:30]} Nd7 {[%emt 0:00:30]} 55. Be2 {[%emt 0:00:30]} Kf7 {[%emt 0:00:30]} 56. Bd1 {[%emt 0:00:30]} Kg6 {[%emt 0:00:30]} 57. Kc3 {[%emt 0:00:30]} Kh6 {[%emt 0:00:30]} 58. Bd6 {[%emt 0:00:30]} Kg6 {[%emt 0:00:30]} 59. Kb4 {[%emt 0:00:30]} Kh6 {[%emt 0:00:30]} 60. Be7 {[%emt 0:00:30]} Bb7 {[%emt 0:00:30]} 61. Bd8 {[%emt 0:00:30]} Kg6 {[%emt 0:00:30]} 62. Bg5 {[%emt 0:00:30]} Ba8 {[%emt 0:00:30]} 63. Be2 {[%emt 0:00:30]} Bc6 {[%emt 0:00:30]} 64. Bf1 {[%emt 0:00:30]} Kh5 {[%emt 0:00:30]} 65. Be2+ {[%emt 0:00:30]} Kg6 {[%emt 0:00:30]} 66. Bd8 {[%emt 0:00:30]} Kh6 {[%emt 0:00:30]} 67. Be7 {[%emt 0:00:30]} Kg6 {[%emt 0:00:30]} 68. Bg5 {[%emt 0:00:30]} Bb7 {[%emt 0:00:30]} 69. Kc3 {[%emt 0:00:30]} Nf8 {[%emt 0:00:30]} 70. Kd2 {[%emt 0:00:30]} Nd7 {[%emt 0:00:30]} 71. Bd8 {[%emt 0:00:30]} Nb8 {[%emt 0:00:30]} 72. Bc7 {[%emt 0:00:30]} Nc6 {[%emt 0:00:30]} 73. Kc3 {[%emt 0:00:30]} Bc8 {[%emt 0:00:30]} 74. Bb6 {[%emt 0:00:30]} 1/2-1/2

[Event "2nd Serbian League-Vojvodina 2023"]
[Site "Novi Sad"]
[Date "2023.11.03"]
[Round "2.5"]
[White "Levnajic, Pavle"]
[Black "Bulajic, Ratko"]
[Result "1-0"]
[ECO "C41"]
[WhiteElo "2160"]
[BlackElo "2075"]
[Annotator "RC"]
[PlyCount "83"]
[EventDate "2023.10.22"]
[EventType "team-tourn"]
[EventCountry "SRB"]
[SourceTitle "playchess.com"]
[Source "ChessBase"]
[SourceQuality "1"]
[TimeControl "40/5400+30:1800+30"]

1. d4 {[%emt 1:31:00]} Nf6 2. Nf3 {[%emt 0:00:30]} d6 {[%emt 1:31:30]} 3. Nbd2 {[%emt 0:00:30]} Nbd7 {[%emt 0:00:30]} 4. e4 {[%emt 0:00:30]} e5 {[%emt 0:00:30]} 5. c3 {[%emt 0:00:30]} Be7 {[%emt 0:00:30]} 6. Bc4 {[%emt 0:00:30]} O-O {[%emt 0:00:30]} 7. O-O {[%emt 0:00:30]} c6 {[%emt 0:00:30]} 8. Bb3 {[%emt 0:00:30]} Qc7 {[%emt 0:00:30]} 9. Re1 {[%emt 0:00:30]} a5 {[%emt 0:00:30]} 10. Nf1 {[%emt 0:00:30]} b5 {[%emt 0:00:30]} 11. Ng3 {[%emt 0:00:30]} Nb6 {[%emt 0:00:30]} 12. Bc2 {[%emt 0:00:30]} g6 {[%emt 0:00:30]} 13. Bh6 {[%emt 0:00:30]} Re8 {[%emt 0:00:30]} 14. h3 {[%emt 0:00:30]} Kh8 {[%emt 0:00:30]} 15. Ng5 {[%emt 0:00:30]} Bf8 {[%emt 0:00:30]} 16. Bxf8 {[%emt 0:00:30]} Rxf8 {[%emt 0:00:30]} 17. dxe5 {[%emt 0:00:30]} dxe5 {[%emt 0:00:30]} 18. Bb3 {[%emt 0:00:30]} a4 {[%emt 0:00:30]} 19. Bxf7 {[%emt 0:00:30]} Qe7 {[%emt 0:00:30]} 20. Qd2 {[%emt 0:00:30]} Kg7 {[%emt 0:00:30]} 21. Qe3 {[%emt 0:00:30]} Rb8 {[%emt 0:00:30]} 22. f4 {[%emt 0:00:30]} Rxf7 {[%emt 0:00:30]} 23. fxe5 {[%emt 0:00:30]} Qxe5 {[%emt 0:00:30]} 24. Nxf7 {[%emt 0:00:30]} Kxf7 {[%emt 0:00:30]} 25. Rf1 {[%emt 0:00:30]} Be6 {[%emt 0:00:30]} 26. Rf3 {[%emt 0:00:30]} Kg7 {[%emt 0:00:30]} 27. Raf1 {[%emt 0:00:30]} Nbd7 {[%emt 0:00:30]} 28. Kh1 {[%emt 0:00:30]} Rf8 {[%emt 0:00:30]} 29. a3 {[%emt 0:00:30]} Rf7 {[%emt 0:00:30]} 30. Qd4 {[%emt 0:00:30]} Bc4 {[%emt 0:00:30]} 31. Rxf6 {[%emt 0:00:30]} Rxf6 {[%emt 0:00:30]} 32. Qxd7+ {[%emt 0:00:30]} Kh6 {[%emt 0:00:30]} 33. Qd2+ {[%emt 0:00:30]} Kg7 {[%emt 0:00:30]} 34. Qd7+ {[%emt 0:00:30]} Kh6 {[%emt 0:00:30]} 35. Rxf6 {[%emt 0:00:30]} Qxf6 {[%emt 0:00:30]} 36. Qd2+ {[%emt 0:00:30]} Qg5 {[%emt 0:00:30]} 37. Qf2 {[%emt 0:00:30]} Qc1+ {[%emt 0:00:30]} 38. Kh2 {[%emt 0:00:30]} Kg5 {[%emt 0:00:30]} 39. Qc5+ {[%emt 0:00:30]} Kh6 {[%emt 0:00:30]} 40. Qf8+ {[%emt 0:00:30]} Kg5 {[%emt 0:00:30]} 41. Qe7+ {[%emt 0:30:30]} Kh6 {[%emt 0:30:30]} 42. Qf6 {[%emt 0:00:30]} 1-0

[Event "2nd Serbian League-Vojvodina 2023"]
[Site "Novi Sad"]
[Date "2023.11.03"]
[Round "2.6"]
[White "Roganovic, Nebojsa"]
[Black "Joksimovic, Dragoljub"]
[Result "1-0"]
[ECO "B08"]
[WhiteElo "2129"]
[BlackElo "2123"]
[Annotator "RC"]
[PlyCount "62"]
[EventDate "2023.10.22"]
[EventType "team-tourn"]
[EventCountry "SRB"]
[SourceTitle "playchess.com"]
[Source "ChessBase"]
[SourceQuality "1"]
[TimeControl "40/5400+30:1800+30"]

1. e4 {[%emt 1:31:00]} d6 {[%emt 0:00:42]} 2. d4 {[%emt 0:00:00]} g6 3. Nf3 {[%emt 0:00:00]} Bg7 4. h3 {[%emt 0:00:00]} Nf6 {[%emt 0:02:00]} 5. Nc3 {[%emt 0:00:00]} c6 6. a4 {[%emt 0:02:30]} Qc7 {[%emt 0:07:25]} 7. Be3 {[%emt 0:00:30]} O-O {[%emt 1:23:53]} 8. Qd2 {[%emt 0:00:00]} Re8 9. Bc4 {[%emt 0:01:00]} Nbd7 {[%emt 0:01:00]} 10. Bb3 {[%emt 0:00:00]} Qa5 {[%emt 0:00:00]} 11. O-O Qh5 {[%emt 0:01:00]} 12. Ng5 {[%emt 0:01:30]} e6 {[%emt 0:00:30]} 13. Ne2 {[%emt 0:00:30]} d5 {[%emt 0:00:00]} 14. e5 {[%emt 0:00:00]} Nxe5 15. Ng3 {[%emt 0:01:00]} Ne4 {[%emt 0:01:30]} 16. N5xe4 {[%emt 0:00:00]} Nf3+ {[%emt 0:00:00]} 17. gxf3 Qxf3 18. Nd6 {[%emt 0:01:30]} Rd8 {[%emt 0:01:30]} 19. Nxc8 {[%emt 0:00:00]} Raxc8 {[%emt 0:00:00]} 20. c3 {[%emt 0:01:00]} e5 {[%emt 0:01:00]} 21. Bd1 {[%emt 0:00:00]} Qf6 {[%emt 0:00:00]} 22. Bg5 {[%emt 0:01:00]} Qe6 {[%emt 0:01:00]} 23. Bxd8 {[%emt 0:00:00]} Rxd8 24. Kg2 {[%emt 0:00:00]} e4 25. Qg5 {[%emt 0:01:30]} f6 {[%emt 0:01:30]} 26. Bg4 {[%emt 0:00:30]} Qd6 {[%emt 0:00:30]} 27. Qe3 {[%emt 0:00:00]} Rf8 {[%emt 0:00:30]} 28. f4 {[%emt 0:01:00]} f5 {[%emt 0:00:30]} 29. Bd1 {[%emt 0:00:00]} g5 {[%emt 0:00:00]} 30. Nh5 {[%emt 0:01:00]} Bh8 {[%emt 0:01:00]} 31. fxg5 {[%emt 0:00:00]} Qg6 {[%emt 0:00:30]} 1-0